[Event "*** Titled Tuesday Blitz"]
[Site "Chess.com"]
[Date "2020.12.01"]
[Round "2"]
[White "SlavenPastar"]
[Black "Rainmond"]
[Result "0-1"]
[WhiteElo "2506"]
[BlackElo "2804"]
[TimeControl "180+1"]
[EndTime "10:15:03 PST"]
[Termination "Rainmond won by resignation"]

1. d4 {[%clk 0:03:00.9]} 1... Nf6 {[%clk 0:02:54.6]} 2. c4 {[%clk 0:03:01.3]}
2... e6 {[%clk 0:02:54.4]} 3. Nf3 {[%clk 0:03:01.8]} 3... b6 {[%clk 0:02:54.1]}
4. Nc3 {[%clk 0:02:59.7]} 4... Bb4 {[%clk 0:02:52.6]} 5. Bg5 {[%clk 0:02:59.8]}
5... h6 {[%clk 0:02:51.6]} 6. Bh4 {[%clk 0:02:58.6]} 6... g5 {[%clk 0:02:51.6]}
7. Bg3 {[%clk 0:02:58.6]} 7... Ne4 {[%clk 0:02:51.8]} 8. Qc2 {[%clk 0:02:57.9]}
8... Bb7 {[%clk 0:02:51.4]} 9. e3 {[%clk 0:02:56.1]} 9... d6 {[%clk 0:02:48.5]}
10. Bd3 {[%clk 0:02:53.6]} 10... f5 {[%clk 0:02:42.8]} 11. O-O-O {[%clk
0:02:19.6]} 11... Bxc3 {[%clk 0:02:39.5]} 12. bxc3 {[%clk 0:02:20.5]} 12... Nd7
{[%clk 0:02:39.6]} 13. d5 {[%clk 0:01:53.2]} 13... Ndc5 {[%clk 0:02:33.1]} 14.
Nd4 {[%clk 0:01:47.7]} 14... exd5 {[%clk 0:02:32.8]} 15. Nxf5 {[%clk 0:01:32.9]}
15... Qf6 {[%clk 0:02:31.5]} 16. Nd4 {[%clk 0:01:13.4]} 16... Nxd3+ {[%clk
0:02:26.9]} 17. Rxd3 {[%clk 0:01:02.2]} 17... Nc5 {[%clk 0:02:20.3]} 18. cxd5
{[%clk 0:00:46.2]} 18... Bxd5 {[%clk 0:02:15.9]} 19. Nb5 {[%clk 0:00:21]} 19...
Be4 {[%clk 0:02:15.5]} 20. Nxc7+ {[%clk 0:00:20.1]} 20... Kd7 {[%clk 0:02:15.4]}
21. Nxa8 {[%clk 0:00:10.5]} 21... Bxd3 {[%clk 0:02:12]} 22. Qd1 {[%clk
0:00:08.7]} 22... Qxc3+ {[%clk 0:02:11.3]} 0-1

[Event "*** Titled Tuesday Blitz"]
[Site "Chess.com"]
[Date "2020.12.01"]
[Round "2"]
[White "garicradomir"]
[Black "Astaneh"]
[Result "0-1"]
[WhiteElo "2299"]
[BlackElo "2612"]
[TimeControl "180+1"]
[EndTime "10:15:09 PST"]
[Termination "Astaneh won by checkmate"]

1. e4 {[%clk 0:02:59.1]} 1... c6 {[%clk 0:02:57.2]} 2. d4 {[%clk 0:02:58.3]}
2... d5 {[%clk 0:02:58.1]} 3. e5 {[%clk 0:02:58.7]} 3... c5 {[%clk 0:02:57.9]}
4. dxc5 {[%clk 0:02:55.5]} 4... Nc6 {[%clk 0:02:57.9]} 5. Nf3 {[%clk 0:02:55.8]}
5... Bg4 {[%clk 0:02:58.5]} 6. Bb5 {[%clk 0:02:50.7]} 6... e6 {[%clk 0:02:58.6]}
7. O-O {[%clk 0:02:45]} 7... Bxc5 {[%clk 0:02:56.5]} 8. h3 {[%clk 0:02:39.6]}
8... Bh5 {[%clk 0:02:56.3]} 9. Nbd2 {[%clk 0:02:39.2]} 9... Ne7 {[%clk
0:02:56.1]} 10. Nb3 {[%clk 0:02:39]} 10... Bb6 {[%clk 0:02:56]} 11. Bg5 {[%clk
0:02:38.9]} 11... h6 {[%clk 0:02:55.1]} 12. Bxc6+ {[%clk 0:02:24.1]} 12... bxc6
{[%clk 0:02:54.9]} 13. Bf4 {[%clk 0:02:15.6]} 13... g5 {[%clk 0:02:54]} 14. Bg3
{[%clk 0:02:12.5]} 14... Nf5 {[%clk 0:02:53.1]} 15. Kh2 {[%clk 0:02:05.4]} 15...
g4 {[%clk 0:02:52.8]} 16. Nfd4 {[%clk 0:01:53.1]} 16... Nxd4 {[%clk 0:02:41.3]}
17. Nxd4 {[%clk 0:01:52.4]} 17... c5 {[%clk 0:02:42]} 18. Nb5 {[%clk 0:01:46.1]}
18... Qg5 {[%clk 0:02:38]} 19. Nd6+ {[%clk 0:01:38.7]} 19... Kf8 {[%clk
0:02:38.2]} 20. h4 {[%clk 0:01:10.9]} 20... Qe7 {[%clk 0:02:26.7]} 21. a4 {[%clk
0:01:09.7]} 21... a6 {[%clk 0:02:25.7]} 22. a5 {[%clk 0:01:09]} 22... Ba7 {[%clk
0:02:24.3]} 23. Ra4 {[%clk 0:01:09.5]} 23... c4 {[%clk 0:02:22.6]} 24. Rb4
{[%clk 0:01:05.6]} 24... Rb8 {[%clk 0:02:22.3]} 25. Qd2 {[%clk 0:01:00.8]} 25...
Kg7 {[%clk 0:02:16.9]} 26. c3 {[%clk 0:00:47.2]} 26... Rxb4 {[%clk 0:02:15.3]}
27. cxb4 {[%clk 0:00:48.1]} 27... Rb8 {[%clk 0:02:12.8]} 28. Bf4 {[%clk
0:00:33.4]} 28... Qxh4+ {[%clk 0:02:11.7]} 29. Kg1 {[%clk 0:00:33.2]} 29... g3
{[%clk 0:02:12]} 30. Be3 {[%clk 0:00:19.6]} 30... Qh2# {[%clk 0:02:06.8]} 0-1

[Event "*** Titled Tuesday Blitz"]
[Site "Chess.com"]
[Date "2020.12.01"]
[Round "2"]
[White "Sunnika"]
[Black "dhaessel"]
[Result "1-0"]
[WhiteElo "2334"]
[BlackElo "1850"]
[TimeControl "180+1"]
[EndTime "10:15:12 PST"]
[Termination "Sunnika won by resignation"]

1. d4 {[%clk 0:03:00.1]} 1... Nf6 {[%clk 0:02:57.6]} 2. Nf3 {[%clk 0:03:01]}
2... g6 {[%clk 0:02:49.8]} 3. Bf4 {[%clk 0:03:01.2]} 3... Bg7 {[%clk 0:02:47.9]}
4. Nc3 {[%clk 0:03:01.6]} 4... d5 {[%clk 0:02:46.6]} 5. e3 {[%clk 0:02:57.6]}
5... O-O {[%clk 0:02:44.7]} 6. Ne5 {[%clk 0:02:46.4]} 6... c5 {[%clk 0:02:39.9]}
7. Be2 {[%clk 0:02:38.5]} 7... cxd4 {[%clk 0:02:36.6]} 8. exd4 {[%clk
0:02:39.4]} 8... Nc6 {[%clk 0:02:34.8]} 9. Nxc6 {[%clk 0:02:37.6]} 9... bxc6
{[%clk 0:02:33.8]} 10. O-O {[%clk 0:02:25.1]} 10... a5 {[%clk 0:02:30.4]} 11.
Na4 {[%clk 0:02:24.4]} 11... Ba6 {[%clk 0:02:28.6]} 12. Nc5 {[%clk 0:02:21.6]}
12... Bxe2 {[%clk 0:02:27]} 13. Qxe2 {[%clk 0:02:22.5]} 13... Nd7 {[%clk
0:02:25]} 14. Nxd7 {[%clk 0:02:13.4]} 14... Qxd7 {[%clk 0:02:24.1]} 15. c3
{[%clk 0:02:14.3]} 15... a4 {[%clk 0:02:14.8]} 16. Rfe1 {[%clk 0:02:11.9]} 16...
e6 {[%clk 0:02:08.7]} 17. Be5 {[%clk 0:02:10.7]} 17... Rfc8 {[%clk 0:02:05.9]}
18. Bxg7 {[%clk 0:02:07.5]} 18... Kxg7 {[%clk 0:02:05.4]} 19. Qe5+ {[%clk
0:02:08.4]} 19... Kg8 {[%clk 0:02:04.2]} 20. h4 {[%clk 0:02:01]} 20... h5 {[%clk
0:01:59.5]} 21. g4 {[%clk 0:01:54.3]} 21... hxg4 {[%clk 0:01:54.8]} 22. h5
{[%clk 0:01:54.5]} 22... Kh7 {[%clk 0:01:51.9]} 23. Kg2 {[%clk 0:01:24]} 23...
f5 {[%clk 0:01:51.2]} 24. Qf6 {[%clk 0:01:15.4]} 24... Qg7 {[%clk 0:01:32.8]}
25. hxg6+ {[%clk 0:01:11.5]} 25... Kg8 {[%clk 0:01:23]} 26. Qxe6+ {[%clk
0:01:10.1]} 26... Kf8 {[%clk 0:01:23.8]} 27. Qxf5+ {[%clk 0:01:05.5]} 27... Kg8
{[%clk 0:01:23.6]} 28. Qe6+ {[%clk 0:01:05.6]} 28... Kf8 {[%clk 0:01:23.3]} 29.
Qd6+ {[%clk 0:01:03.9]} 29... Kg8 {[%clk 0:01:21.8]} 30. Re7 {[%clk 0:01:04.3]}
1-0

[Event "*** Titled Tuesday Blitz"]
[Site "Chess.com"]
[Date "2020.12.01"]
[Round "2"]
[White "adriangschnitzer"]
[Black "Blitzstream"]
[Result "0-1"]
[WhiteElo "2487"]
[BlackElo "2771"]
[TimeControl "180+1"]
[EndTime "10:15:13 PST"]
[Termination "Blitzstream won by resignation"]

1. e4 {[%clk 0:03:00.6]} 1... d5 {[%clk 0:03:00.1]} 2. exd5 {[%clk 0:02:57.9]}
2... Qxd5 {[%clk 0:03:01]} 3. Nf3 {[%clk 0:02:54.7]} 3... Bg4 {[%clk 0:03:00.5]}
4. Be2 {[%clk 0:02:54.4]} 4... Nc6 {[%clk 0:03:00.5]} 5. h3 {[%clk 0:02:54.3]}
5... Bxf3 {[%clk 0:03:00.3]} 6. Bxf3 {[%clk 0:02:53.7]} 6... Qd7 {[%clk
0:03:01.2]} 7. O-O {[%clk 0:02:46.2]} 7... O-O-O {[%clk 0:03:00.6]} 8. b4 {[%clk
0:02:41.9]} 8... e5 {[%clk 0:02:59.1]} 9. b5 {[%clk 0:02:40.7]} 9... Nd4 {[%clk
0:02:58.9]} 10. Nc3 {[%clk 0:02:38.1]} 10... f5 {[%clk 0:02:58.7]} 11. Re1
{[%clk 0:02:34]} 11... e4 {[%clk 0:02:53.8]} 12. Be2 {[%clk 0:02:24.3]} 12...
Nf6 {[%clk 0:02:53.4]} 13. Bb2 {[%clk 0:02:22.4]} 13... Bc5 {[%clk 0:02:23.1]}
14. Bc4 {[%clk 0:02:11.1]} 14... Qd6 {[%clk 0:02:18.4]} 15. Ne2 {[%clk
0:02:01.3]} 15... Nf3+ {[%clk 0:01:54.6]} 16. gxf3 {[%clk 0:01:59.7]} 16...
Bxf2+ {[%clk 0:01:54.8]} 17. Kxf2 {[%clk 0:01:49.8]} 17... Qh2+ {[%clk
0:01:50.2]} 18. Kf1 {[%clk 0:01:43.5]} 18... Qxh3+ {[%clk 0:01:46.2]} 19. Kg1
{[%clk 0:01:34.9]} 19... exf3 {[%clk 0:01:45]} 20. Be6+ {[%clk 0:01:16.8]} 20...
Kb8 {[%clk 0:01:44]} 21. Nf4 {[%clk 0:01:17.7]} 21... Qg3+ {[%clk 0:01:38.2]}
22. Kf1 {[%clk 0:01:14.8]} 22... Ng4 {[%clk 0:01:28.8]} 23. Re2 {[%clk
0:01:04.9]} 23... fxe2+ {[%clk 0:01:24.5]} 24. Qxe2 {[%clk 0:01:05.8]} 24...
Qxf4+ {[%clk 0:01:23.6]} 25. Kg1 {[%clk 0:00:58.8]} 25... Rxd2 {[%clk
0:01:21.3]} 0-1

[Event "*** Titled Tuesday Blitz"]
[Site "Chess.com"]
[Date "2020.12.01"]
[Round "2"]
[White "yoelpolanco"]
[Black "Gerasimenyuk_Miha"]
[Result "1-0"]
[WhiteElo "2229"]
[BlackElo "2407"]
[TimeControl "180+1"]
[EndTime "10:15:18 PST"]
[Termination "yoelpolanco won by resignation"]

1. c4 {[%clk 0:02:28.9]} 1... e5 {[%clk 0:02:58.2]} 2. Nc3 {[%clk 0:02:24.9]}
2... Nc6 {[%clk 0:02:58.5]} 3. Nf3 {[%clk 0:02:24.8]} 3... Bc5 {[%clk
0:02:58.8]} 4. a3 {[%clk 0:02:22.8]} 4... a6 {[%clk 0:02:58.8]} 5. e4 {[%clk
0:02:22.8]} 5... Ba7 {[%clk 0:02:58.2]} 6. d3 {[%clk 0:02:20.1]} 6... d6 {[%clk
0:02:59.1]} 7. Be3 {[%clk 0:02:20.4]} 7... Bxe3 {[%clk 0:02:59.1]} 8. fxe3
{[%clk 0:02:20.4]} 8... Nge7 {[%clk 0:03:00]} 9. Be2 {[%clk 0:02:20]} 9... O-O
{[%clk 0:03:00.9]} 10. O-O {[%clk 0:02:20.4]} 10... f5 {[%clk 0:03:01.8]} 11.
exf5 {[%clk 0:02:15.5]} 11... Bxf5 {[%clk 0:03:01.8]} 12. Qd2 {[%clk 0:02:16.4]}
12... Bg4 {[%clk 0:03:02.1]} 13. b4 {[%clk 0:02:15.5]} 13... Bxf3 {[%clk
0:03:02.2]} 14. Bxf3 {[%clk 0:02:15.1]} 14... Qd7 {[%clk 0:03:02.9]} 15. Qe2
{[%clk 0:02:00.6]} 15... Ng6 {[%clk 0:02:30.9]} 16. Rab1 {[%clk 0:02:00.6]}
16... Rae8 {[%clk 0:02:18.4]} 17. Nd5 {[%clk 0:01:19.9]} 17... Nce7 {[%clk
0:02:16.3]} 18. Nxe7+ {[%clk 0:01:19.2]} 18... Qxe7 {[%clk 0:02:13.4]} 19. Bxb7
{[%clk 0:01:20.1]} 19... Kh8 {[%clk 0:02:11.3]} 20. Bc6 {[%clk 0:01:19]} 20...
Rb8 {[%clk 0:02:02.6]} 21. a4 {[%clk 0:01:19.9]} 21... Qg5 {[%clk 0:01:58.5]}
22. Rxf8+ {[%clk 0:01:18.8]} 22... Rxf8 {[%clk 0:01:58]} 23. b5 {[%clk
0:01:19.7]} 23... a5 {[%clk 0:01:56.5]} 24. Rf1 {[%clk 0:01:13.6]} 24... Rd8
{[%clk 0:01:56]} 25. Rf7 {[%clk 0:01:12.5]} 25... h5 {[%clk 0:01:51.3]} 26. Rxc7
{[%clk 0:01:07.5]} 26... h4 {[%clk 0:01:51.4]} 27. b6 {[%clk 0:01:00.5]} 27...
h3 {[%clk 0:01:50.1]} 28. b7 {[%clk 0:01:00]} 28... hxg2 {[%clk 0:01:46.7]} 29.
Rc8 {[%clk 0:00:57.3]} 29... Ne7 {[%clk 0:01:36.6]} 30. Rxd8+ {[%clk 0:00:54.1]}
1-0

[Event "*** Titled Tuesday Blitz"]
[Site "Chess.com"]
[Date "2020.12.01"]
[Round "2"]
[White "nocnypako"]
[Black "jefferyx"]
[Result "1-0"]
[WhiteElo "2576"]
[BlackElo "2907"]
[TimeControl "180+1"]
[EndTime "10:15:19 PST"]
[Termination "nocnypako won by resignation"]

1. d4 {[%clk 0:03:00.6]} 1... Nf6 {[%clk 0:03:00.2]} 2. c4 {[%clk 0:03:00.5]}
2... c5 {[%clk 0:03:00.8]} 3. d5 {[%clk 0:03:00.1]} 3... b5 {[%clk 0:03:01.4]}
4. Nf3 {[%clk 0:02:59.5]} 4... g6 {[%clk 0:03:01]} 5. cxb5 {[%clk 0:02:59.6]}
5... a6 {[%clk 0:03:00.8]} 6. b6 {[%clk 0:02:59.9]} 6... Bg7 {[%clk 0:02:59.9]}
7. Nc3 {[%clk 0:03:00.1]} 7... O-O {[%clk 0:03:00.4]} 8. a4 {[%clk 0:02:59.5]}
8... a5 {[%clk 0:02:59.2]} 9. e4 {[%clk 0:02:59]} 9... d6 {[%clk 0:02:59.5]} 10.
Bb5 {[%clk 0:02:58.1]} 10... Qxb6 {[%clk 0:02:57.9]} 11. O-O {[%clk 0:02:57.7]}
11... e6 {[%clk 0:02:33.1]} 12. Nd2 {[%clk 0:02:53.6]} 12... exd5 {[%clk
0:02:33.2]} 13. exd5 {[%clk 0:02:54.3]} 13... Na6 {[%clk 0:02:09.4]} 14. Nc4
{[%clk 0:02:53.9]} 14... Qc7 {[%clk 0:02:10]} 15. Bf4 {[%clk 0:02:49.1]} 15...
Rd8 {[%clk 0:02:10.5]} 16. Bc6 {[%clk 0:02:45.5]} 16... Rb8 {[%clk 0:01:29.4]}
17. Nb5 {[%clk 0:02:42.6]} 17... Rxb5 {[%clk 0:01:30]} 18. axb5 {[%clk
0:02:40.8]} 18... Nb4 {[%clk 0:01:30.9]} 19. b6 {[%clk 0:02:29.5]} 19... Qb8
{[%clk 0:01:30.9]} 20. Rxa5 {[%clk 0:02:19.4]} 20... Bb7 {[%clk 0:01:27]} 21.
Bxd6 {[%clk 0:02:01.9]} 21... Rxd6 {[%clk 0:01:21.3]} 22. Bxb7 {[%clk
0:02:01.9]} 22... Qxb7 {[%clk 0:01:05.8]} 23. Nxd6 {[%clk 0:02:01.6]} 23... Qxb6
{[%clk 0:01:06.7]} 24. Nc4 {[%clk 0:01:59.2]} 24... Qb7 {[%clk 0:01:03.6]} 25.
d6 {[%clk 0:01:54.4]} 25... Nd7 {[%clk 0:01:01.1]} 26. Qa4 {[%clk 0:01:49.4]}
26... Nc6 {[%clk 0:00:58.1]} 27. Rb5 {[%clk 0:01:37.6]} 27... Qc8 {[%clk
0:00:56.1]} 28. Nb6 {[%clk 0:01:37]} 28... Qd8 {[%clk 0:00:45.2]} 29. Nxd7
{[%clk 0:01:30.7]} 29... Qxd7 {[%clk 0:00:46.1]} 30. Rb6 {[%clk 0:01:30.5]} 1-0

[Event "*** Titled Tuesday Blitz"]
[Site "Chess.com"]
[Date "2020.12.01"]
[Round "2"]
[White "Ranindu2003"]
[Black "annacramling"]
[Result "1-0"]
[WhiteElo "2595"]
[BlackElo "2129"]
[TimeControl "180+1"]
[EndTime "10:15:20 PST"]
[Termination "Ranindu2003 won by resignation"]

1. e4 {[%clk 0:02:59.8]} 1... c5 {[%clk 0:02:54.9]} 2. Nf3 {[%clk 0:02:59.5]}
2... e6 {[%clk 0:02:46.9]} 3. d4 {[%clk 0:02:59.3]} 3... cxd4 {[%clk 0:02:47.3]}
4. Bg5 {[%clk 0:03:00.2]} 4... Nf6 {[%clk 0:02:48.2]} 5. e5 {[%clk 0:02:57.4]}
5... h6 {[%clk 0:02:47.8]} 6. Bh4 {[%clk 0:02:52.8]} 6... g5 {[%clk 0:02:47.1]}
7. Bg3 {[%clk 0:02:53.1]} 7... Bb4+ {[%clk 0:02:15.4]} 8. c3 {[%clk 0:02:43.2]}
8... dxc3 {[%clk 0:02:15.3]} 9. bxc3 {[%clk 0:02:44.1]} 9... Qa5 {[%clk
0:01:53.7]} 10. cxb4 {[%clk 0:02:15.9]} 10... Qxb4+ {[%clk 0:01:54.6]} 11. Nbd2
{[%clk 0:02:13.2]} 11... Nd5 {[%clk 0:01:40.9]} 12. Bc4 {[%clk 0:02:04.1]} 12...
Nb6 {[%clk 0:01:23.9]} 13. Be2 {[%clk 0:01:53.7]} 13... Nc6 {[%clk 0:01:09.4]}
14. O-O {[%clk 0:01:53.1]} 14... Nd5 {[%clk 0:00:42.5]} 15. Rb1 {[%clk
0:01:44.1]} 15... Qe7 {[%clk 0:00:40.1]} 16. Ne4 {[%clk 0:01:41.7]} 16... O-O
{[%clk 0:00:39.1]} 17. Bc4 {[%clk 0:01:37.2]} 17... Nb6 {[%clk 0:00:22.2]} 18.
Qd3 {[%clk 0:01:34.6]} 18... Nxc4 {[%clk 0:00:21.5]} 19. Nf6+ {[%clk 0:01:34.7]}
1-0

[Event "*** Titled Tuesday Blitz"]
[Site "Chess.com"]
[Date "2020.12.01"]
[Round "2"]
[White "Aleksey_Sorokin"]
[Black "ikhasu"]
[Result "1-0"]
[WhiteElo "2829"]
[BlackElo "2411"]
[TimeControl "180+1"]
[EndTime "10:15:22 PST"]
[Termination "Aleksey_Sorokin won by resignation"]

1. d4 {[%clk 0:02:56.6]} 1... Nf6 {[%clk 0:02:59]} 2. c4 {[%clk 0:02:56.9]} 2...
c5 {[%clk 0:02:58.7]} 3. d5 {[%clk 0:02:56.9]} 3... b5 {[%clk 0:02:58.5]} 4.
cxb5 {[%clk 0:02:57.8]} 4... a6 {[%clk 0:02:58.6]} 5. bxa6 {[%clk 0:02:58.7]}
5... Bxa6 {[%clk 0:02:58.6]} 6. Nc3 {[%clk 0:02:58.7]} 6... g6 {[%clk
0:02:57.6]} 7. Nf3 {[%clk 0:02:58.9]} 7... Bg7 {[%clk 0:02:57.2]} 8. e4 {[%clk
0:02:59.5]} 8... Bxf1 {[%clk 0:02:55.8]} 9. Kxf1 {[%clk 0:03:00.4]} 9... d6
{[%clk 0:02:55.9]} 10. g3 {[%clk 0:03:00.9]} 10... O-O {[%clk 0:02:55.2]} 11.
Kg2 {[%clk 0:03:01.5]} 11... Qb6 {[%clk 0:02:51.8]} 12. a4 {[%clk 0:03:00.4]}
12... Na6 {[%clk 0:02:50.9]} 13. Qe2 {[%clk 0:02:57]} 13... Rfb8 {[%clk
0:02:42.8]} 14. Bd2 {[%clk 0:02:54.5]} 14... Nd7 {[%clk 0:02:19.6]} 15. Rhb1
{[%clk 0:02:50.1]} 15... Nc7 {[%clk 0:02:09.8]} 16. b3 {[%clk 0:02:45.6]} 16...
Qa6 {[%clk 0:01:55.8]} 17. Qd1 {[%clk 0:02:42.4]} 17... Qd3 {[%clk 0:01:28.7]}
18. Ne1 {[%clk 0:02:40]} 18... Qd4 {[%clk 0:01:25.1]} 19. Qe2 {[%clk 0:02:40]}
19... Ne5 {[%clk 0:00:57.1]} 20. f4 {[%clk 0:02:25.7]} 20... Nd7 {[%clk
0:00:32]} 21. Nc2 {[%clk 0:02:23.3]} 21... Qf6 {[%clk 0:00:30.7]} 22. Ne3 {[%clk
0:02:15.1]} 22... Qd4 {[%clk 0:00:28.9]} 23. e5 {[%clk 0:02:05.5]} 23... dxe5
{[%clk 0:00:27.6]} 24. Nc2 {[%clk 0:02:03]} 24... exf4 {[%clk 0:00:03.1]} 25.
Nxd4 {[%clk 0:02:02.1]} 25... cxd4 {[%clk 0:00:03.3]} 1-0

[Event "*** Titled Tuesday Blitz"]
[Site "Chess.com"]
[Date "2020.12.01"]
[Round "2"]
[White "FairChess_on_YouTube"]
[Black "albi1999"]
[Result "1-0"]
[WhiteElo "2993"]
[BlackElo "2576"]
[TimeControl "180+1"]
[EndTime "10:15:25 PST"]
[Termination "FairChess_on_YouTube won by resignation"]

1. c4 {[%clk 0:03:00.1]} 1... e5 {[%clk 0:02:54]} 2. b3 {[%clk 0:02:58.3]} 2...
Nc6 {[%clk 0:02:52.9]} 3. Bb2 {[%clk 0:02:57.6]} 3... g6 {[%clk 0:02:52]} 4. Nf3
{[%clk 0:02:54.8]} 4... Bg7 {[%clk 0:02:51.6]} 5. e3 {[%clk 0:02:54.5]} 5...
Nge7 {[%clk 0:02:46.6]} 6. d4 {[%clk 0:02:52.9]} 6... exd4 {[%clk 0:02:45.1]} 7.
Nxd4 {[%clk 0:02:53.8]} 7... O-O {[%clk 0:02:41.7]} 8. Be2 {[%clk 0:02:53.9]}
8... Nxd4 {[%clk 0:02:39.1]} 9. Bxd4 {[%clk 0:02:53.1]} 9... d5 {[%clk
0:02:38.5]} 10. Bxg7 {[%clk 0:02:50.9]} 10... Kxg7 {[%clk 0:02:39.4]} 11. Qc1
{[%clk 0:02:45.7]} 11... dxc4 {[%clk 0:02:37.9]} 12. Qxc4 {[%clk 0:02:43]} 12...
Be6 {[%clk 0:02:34.3]} 13. Qc3+ {[%clk 0:02:42.7]} 13... Kg8 {[%clk 0:02:34.4]}
14. O-O {[%clk 0:02:41.8]} 14... Nd5 {[%clk 0:02:34.5]} 15. Qb2 {[%clk
0:02:39.8]} 15... Qf6 {[%clk 0:02:34.2]} 16. Qxf6 {[%clk 0:02:38.5]} 16... Nxf6
{[%clk 0:02:35.1]} 17. Nc3 {[%clk 0:02:37.6]} 17... Rfd8 {[%clk 0:02:35.6]} 18.
Rfd1 {[%clk 0:02:37.4]} 18... Nd5 {[%clk 0:02:28.9]} 19. Nxd5 {[%clk 0:02:32.3]}
19... Bxd5 {[%clk 0:02:26.9]} 20. f3 {[%clk 0:02:31.6]} 20... c5 {[%clk
0:02:25.1]} 21. Kf2 {[%clk 0:02:27.8]} 21... Kf8 {[%clk 0:02:24.3]} 22. e4
{[%clk 0:02:26.7]} 22... Be6 {[%clk 0:02:23.7]} 23. Ke3 {[%clk 0:02:26.4]} 23...
Ke7 {[%clk 0:02:23.2]} 24. f4 {[%clk 0:02:26.3]} 24... f6 {[%clk 0:02:22.3]} 25.
g4 {[%clk 0:02:25.9]} 25... Rxd1 {[%clk 0:02:12.6]} 26. Rxd1 {[%clk 0:02:26.8]}
26... Rd8 {[%clk 0:02:13]} 27. Rh1 {[%clk 0:02:27.3]} 27... a6 {[%clk
0:02:08.4]} 28. h4 {[%clk 0:02:26.6]} 28... b5 {[%clk 0:01:57]} 29. g5 {[%clk
0:02:26.8]} 29... f5 {[%clk 0:01:44.3]} 30. h5 {[%clk 0:02:22.3]} 30... Rd4
{[%clk 0:01:39.1]} 31. Bf3 {[%clk 0:02:04.7]} 31... fxe4 {[%clk 0:00:50.3]} 32.
hxg6 {[%clk 0:02:04.7]} 32... hxg6 {[%clk 0:00:45.9]} 33. Bxe4 {[%clk
0:02:04.5]} 33... Bd5 {[%clk 0:00:29]} 34. Rh7+ {[%clk 0:02:02.6]} 34... Ke6
{[%clk 0:00:29]} 35. Bxg6 {[%clk 0:02:02]} 1-0

[Event "*** Titled Tuesday Blitz"]
[Site "Chess.com"]
[Date "2020.12.01"]
[Round "2"]
[White "eCztery"]
[Black "NewBornNow"]
[Result "0-1"]
[WhiteElo "2316"]
[BlackElo "2697"]
[TimeControl "180+1"]
[EndTime "10:15:29 PST"]
[Termination "NewBornNow won by resignation"]

1. e4 {[%clk 0:00:45.1]} 1... c5 {[%clk 0:02:58.2]} 2. Nf3 {[%clk 0:00:44.5]}
2... d6 {[%clk 0:02:57.8]} 3. d4 {[%clk 0:00:44.5]} 3... cxd4 {[%clk 0:02:58.3]}
4. Qd3 {[%clk 0:00:45]} 4... Nf6 {[%clk 0:02:59.2]} 5. Bg5 {[%clk 0:00:43.9]}
5... e5 {[%clk 0:02:58.6]} 6. c3 {[%clk 0:00:43.7]} 6... dxc3 {[%clk 0:02:58.2]}
7. Nxc3 {[%clk 0:00:44.6]} 7... Nbd7 {[%clk 0:02:58.3]} 8. O-O-O {[%clk
0:00:44.9]} 8... a6 {[%clk 0:02:58.6]} 9. Nd5 {[%clk 0:00:41.8]} 9... h6 {[%clk
0:02:57.1]} 10. Nxf6+ {[%clk 0:00:28.4]} 10... Nxf6 {[%clk 0:02:56]} 11. Bh4
{[%clk 0:00:22.6]} 11... Be6 {[%clk 0:02:54.9]} 12. Kb1 {[%clk 0:00:22.5]} 12...
Qa5 {[%clk 0:02:54.2]} 13. b3 {[%clk 0:00:22.7]} 13... Nd7 {[%clk 0:02:50.5]}
14. g4 {[%clk 0:00:22.1]} 14... Nc5 {[%clk 0:02:49.3]} 15. Qc2 {[%clk
0:00:20.8]} 15... Bxg4 {[%clk 0:02:46.1]} 16. Be2 {[%clk 0:00:20.6]} 16... Rc8
{[%clk 0:02:42.1]} 17. Rhg1 {[%clk 0:00:20.3]} 17... Be6 {[%clk 0:02:40.1]} 18.
Bc4 {[%clk 0:00:18.5]} 18... Nxe4 {[%clk 0:02:25.4]} 19. Qxe4 {[%clk 0:00:16.2]}
19... Bxc4 {[%clk 0:02:24.9]} 20. bxc4 {[%clk 0:00:16.4]} 20... Qb4+ {[%clk
0:02:24.1]} 21. Ka1 {[%clk 0:00:16.9]} 21... Qc3+ {[%clk 0:02:23.8]} 22. Kb1
{[%clk 0:00:17]} 22... Rxc4 {[%clk 0:02:23.7]} 23. Qxc4 {[%clk 0:00:06.3]} 23...
Qxc4 {[%clk 0:02:23.5]} 24. Nxe5 {[%clk 0:00:06.5]} 24... Qxh4 {[%clk
0:02:19.8]} 25. Nd3 {[%clk 0:00:05.1]} 25... Be7 {[%clk 0:02:18.5]} 26. Rge1
{[%clk 0:00:06]} 26... O-O {[%clk 0:02:18]} 27. Re3 {[%clk 0:00:05.4]} 27... Bf6
{[%clk 0:02:17.3]} 28. f4 {[%clk 0:00:03.6]} 28... Qxh2 {[%clk 0:02:15.6]} 29.
Rde1 {[%clk 0:00:03.6]} 29... Rc8 {[%clk 0:02:14.2]} 30. R1e2 {[%clk 0:00:04.5]}
30... Qh1+ {[%clk 0:02:13.7]} 31. Re1 {[%clk 0:00:03.4]} 31... Qd5 {[%clk
0:02:14]} 32. a3 {[%clk 0:00:02.7]} 32... Qb3+ {[%clk 0:02:13.4]} 0-1